fUSD/lending_fUSD_20260529
["ID","MTS","AMOUNT","RATE_DAILY","PERIOD"]
[423362605,1780067445000,-7433.39,0.00029801,2]
[423362595,1780067445000,-241.13361198,0.00029667,7]
[423362597,1780067445000,-305.49452106,0.00029667,7]
[423362598,1780067445000,-300.99596558,0.00029667,7]
[423362600,1780067445000,-674.0,0.00029681,30]
[423362599,1780067445000,-344.36092522,0.00029667,7]
[423362606,1780067445000,-7433.39,0.00029801,30]
[423362610,1780067445000,-7433.39,0.00029801,7]
[423362611,1780067445000,-7433.39,0.00029801,2]
[423362609,1780067445000,-7433.39,0.00029801,30]
[423362608,1780067445000,-7433.39,0.00029801,2]
[423362607,1780067445000,-7433.39,0.00029801,7]
[423362613,1780067445000,-1790.31,0.00029828,30]
[423362596,1780067445000,-394.28971165,0.00029667,7]
[423362653,1780067445000,-337.69983857,0.00029885,2]
[423362642,1780067445000,-463.92,0.00029838,7]
[423362645,1780067445000,-2094.51,0.00029855,30]
[423362682,1780067445000,-414.09,0.00029978,30]
[423362683,1780067445000,-414.09,0.00029978,2]
[423362691,1780067445000,-327.059999,0.0003,11]
[423362693,1780067445000,-200.0,0.0003,2]
[423362692,1780067445000,-410.5420813,0.0003,2]
[423362694,1780067445000,-200.0,0.0003,2]
[423362686,1780067445000,-414.09,0.00029978,2]
[423362685,1780067445000,-414.09,0.00029978,30]
[423362687,1780067445000,-414.09,0.00029978,7]
[423362684,1780067445000,-414.09,0.00029978,7]
[423362689,1780067445000,-414.09,0.00029978,2]
[423362690,1780067445000,-414.14,0.00029978,7]
[423362696,1780067445000,-200.0,0.0003,2]
[423362678,1780067445000,-1400.0,0.000299,10]
[423362701,1780067445000,-996.0,0.00030075,7]
[423362695,1780067445000,-1000.0,0.0003,2]
[423362706,1780067445000,-931.0,0.000301,120]
[423362703,1780067445000,-4864.15,0.00030082,120]
[423362705,1780067445000,-229.12,0.000301,14]
[423362702,1780067445000,-500.0,0.00030082,2]
[423362697,1780067445000,-172.0,0.0003,14]
[423362699,1780067445000,-368.30440275,0.0003,30]
[423362700,1780067445000,-5981.2913539,0.00030032,2]
[423362707,1780067445000,-152.0,0.00030117,25]
[423362698,1780067445000,-200.0,0.0003,2]
[423362708,1780067445000,-1000.0,0.00030137,120]
[423362709,1780067445000,-199.10707526,0.00030137,7]
[423362654,1780067445000,-151.0,0.0002989,7]
[423362704,1780067445000,-150.0,0.000301,14]
[423362677,1780067445000,-2881.73,0.000299,7]
[423362688,1780067445000,-414.09,0.00029978,30]
[423362674,1780067445000,-486.36,0.00029893,30]
[423362676,1780067445000,-486.41,0.00029893,7]
[423362648,1780067445000,-206.51603629,0.00029873,7]
[423362646,1780067445000,-151.0,0.00029856,7]
[423362651,1780067445000,-331.63961025,0.00029883,7]
[423362650,1780067445000,-1004.38858038,0.00029876,40]
[423362649,1780067445000,-1004.38858038,0.00029876,40]
[423362658,1780067445000,-486.36,0.00029893,30]
[423362655,1780067445000,-151.0,0.0002989,7]
[423362659,1780067445000,-486.36,0.00029893,2]
[423362657,1780067445000,-486.36,0.00029893,7]
[423362668,1780067445000,-486.36,0.00029893,30]
[423362661,1780067445000,-486.36,0.00029893,7]
[423362662,1780067445000,-486.36,0.00029893,30]
[423362663,1780067445000,-486.36,0.00029893,2]
[423362647,1780067445000,-151.0,0.00029856,7]
[423362656,1780067445000,-486.36,0.00029893,2]
[423362666,1780067445000,-486.36,0.00029893,2]
[423362673,1780067445000,-486.36,0.00029893,7]
[423362669,1780067445000,-486.36,0.00029893,2]
[423362671,1780067445000,-486.36,0.00029893,30]
[423362679,1780067445000,-50339.39,0.000299,14]
[423362672,1780067445000,-486.36,0.00029893,2]
[423362675,1780067445000,-486.36,0.00029893,2]
[423362670,1780067445000,-486.36,0.00029893,7]
[423362680,1780067445000,-335.77898679,0.00029957,7]
[423362664,1780067445000,-486.36,0.00029893,7]
[423362667,1780067445000,-486.36,0.00029893,7]
[423362665,1780067445000,-486.36,0.00029893,30]
[423362681,1780067445000,-414.09,0.00029978,7]
[423362750,1780067446000,-159.42494355,0.00030548,7]
[423362753,1780067446000,-505.50884792,0.00030553,7]
[423362756,1780067446000,-352.94021178,0.00030553,7]
[423362752,1780067446000,-293.91397963,0.00030548,7]
[423362742,1780067446000,-275.68661596,0.00030548,7]
[423362755,1780067446000,-207.00428148,0.00030553,7]
[423362757,1780067446000,-508.23205799,0.00030553,7]
[423362748,1780067446000,-204.48231542,0.00030548,7]
[423362747,1780067446000,-166.89255691,0.00030548,7]
[423362743,1780067446000,-511.36078416,0.00030548,7]
[423362741,1780067446000,-612.50011372,0.00030548,7]
[423362754,1780067446000,-245.72979678,0.00030553,7]
[423362746,1780067446000,-162.99682541,0.00030548,7]
[423362749,1780067446000,-259.13241421,0.00030548,2]
[423362768,1780067446000,-337.38000991,0.00030553,7]
[423362759,1780067446000,-400.43133027,0.00030553,7]
[423362758,1780067446000,-390.19591139,0.00030553,7]
[423362760,1780067446000,-277.31540027,0.00030553,7]
[423362769,1780067446000,-865.25562702,0.00030553,7]
[423362762,1780067446000,-530.49192663,0.00030553,7]
[423362764,1780067446000,-459.06794687,0.00030553,7]
[423362761,1780067446000,-492.81652336,0.00030553,7]
[423362763,1780067446000,-563.2557031,0.00030553,7]
[423362770,1780067446000,-573.35933622,0.00030553,7]
[423362767,1780067446000,-460.32393047,0.00030553,7]
[423362771,1780067446000,-280.93761709,0.00030553,2]
[423362766,1780067446000,-228.99814346,0.00030553,7]
[423362740,1780067446000,-471.25345325,0.00030548,7]
[423362751,1780067446000,-203.0969762,0.00030548,7]
[423362739,1780067446000,-162.21557078,0.00030548,7]
[423362710,1780067446000,-398.21415052,0.00030137,7]
[423362737,1780067446000,-155.22549886,0.00030548,7]
[423362711,1780067446000,-331.71999999,0.00030137,30]
[423362719,1780067446000,-2881.73,0.000304,7]
[423362718,1780067446000,-150.0,0.00030341,2]
[423362712,1780067446000,-740.673781,0.000302,2]
[423362717,1780067446000,-50339.39,0.000303,14]
[423362715,1780067446000,-3115.9,0.00030239,2]
[423362716,1780067446000,-188.44606373,0.00030275,2]
[423362714,1780067446000,-609.02,0.00030233,120]
[423362713,1780067446000,-500.0,0.00030233,120]
[423362721,1780067446000,-685.81,0.000305,7]
[423362732,1780067446000,-250.76218008,0.00030548,7]
[423362731,1780067446000,-508.30022284,0.00030548,7]
[423362720,1780067446000,-600.0,0.00030411,120]
[423362738,1780067446000,-152.41257321,0.00030548,7]
[423362729,1780067446000,-505.78078822,0.00030548,7]
[423362730,1780067446000,-593.49397199,0.00030548,7]
[423362728,1780067446000,-386.15199806,0.00030548,7]
[423362723,1780067446000,-206.16180461,0.00030548,7]
[423362727,1780067446000,-602.65578174,0.00030548,7]
[423362722,1780067446000,-152.0,0.00030507,26]
[423362726,1780067446000,-491.7932759,0.00030548,7]
[423362724,1780067446000,-902.31338758,0.00030548,7]
[423362734,1780067446000,-194.97431839,0.00030548,7]
[423362744,1780067446000,-403.02201429,0.00030548,7]
[423362736,1780067446000,-152.29490688,0.00030548,7]
[423362733,1780067446000,-154.37760921,0.00030548,7]
[423362745,1780067446000,-224.006469,0.00030548,7]
[423362735,1780067446000,-220.71003072,0.00030548,7]
[423362725,1780067446000,-505.85259683,0.00030548,7]
[423362773,1780067446000,-302.25343837,0.00030553,7]
[423362765,1780067446000,-476.44659787,0.00030553,7]
[423362772,1780067446000,-293.88995501,0.00030553,2]
[423362806,1780067446000,-996.0,0.00030629,7]
[423362807,1780067446000,-5000.0,0.00030676,2]
[423362810,1780067446000,-841.0,0.00030681,30]
[423362812,1780067446000,-21082.72906717,0.00030744,2]
[423362811,1780067446000,-767.0183,0.000307,2]
[423362813,1780067446000,-497.45941538,0.00030774,7]
[423362819,1780067446000,-546.02,0.00030793,2]
[423362814,1780067446000,-171.50882795,0.00030774,7]
[423362820,1780067446000,-50339.39,0.000308,14]
[423362816,1780067446000,-506.54975786,0.00030775,2]
[423362815,1780067446000,-190.35585242,0.00030774,7]
[423362821,1780067446000,-151.0,0.000308,7]
[423362818,1780067446000,-1000.0,0.00030783,47]
[423362805,1780067446000,-1023.28,0.00030624,15]
[423362817,1780067446000,-539.19185146,0.00030778,7]
[423362822,1780067446000,-1464.0,0.00030896,30]
[423362823,1780067446000,-152.0,0.00030898,27]
[423362832,1780067446000,-1172.22,0.0003092,30]
[423362825,1780067446000,-2881.73,0.000309,7]
[423362831,1780067446000,-1172.22,0.00030916,30]
[423362826,1780067446000,-2100.0,0.000309,11]
[423362827,1780067446000,-1172.22,0.000309,30]
[423362830,1780067446000,-1172.22,0.00030912,30]
[423362833,1780067446000,-1172.22,0.00030924,30]
[423362829,1780067446000,-1172.22,0.00030908,30]
[423362834,1780067446000,-188.44606373,0.00030927,2]
[423362828,1780067446000,-1172.22,0.00030904,30]
[423362835,1780067446000,-1172.22,0.00030929,30]
[423362824,1780067446000,-200.0,0.000309,11]
[423362802,1780067446000,-1027.08298476,0.00030553,7]
[423362783,1780067446000,-219.92388746,0.00030553,7]
[423362803,1780067446000,-516.54138783,0.00030553,7]
[423362780,1780067446000,-249.54806209,0.00030553,7]
[423362776,1780067446000,-305.10758997,0.00030553,7]
[423362778,1780067446000,-154.4990258,0.00030553,7]
[423362779,1780067446000,-626.51077512,0.00030553,7]
[423362774,1780067446000,-577.58768195,0.00030553,7]
[423362775,1780067446000,-1115.70776733,0.00030553,7]
[423362782,1780067446000,-484.55433987,0.00030553,7]
[423362781,1780067446000,-201.40377158,0.00030553,7]
[423362804,1780067446000,-617.68163511,0.00030553,7]
[423362784,1780067446000,-292.23308746,0.00030553,7]
[423362786,1780067446000,-571.91469096,0.00030553,7]
[423362789,1780067446000,-591.43456747,0.00030553,7]
[423362785,1780067446000,-620.38059766,0.00030553,5]
[423362788,1780067446000,-495.07104896,0.00030553,7]
[423362777,1780067446000,-348.22935332,0.00030553,7]
[423362793,1780067446000,-482.26722397,0.00030553,7]
[423362790,1780067446000,-511.2354123,0.00030553,7]
[423362800,1780067446000,-597.32122579,0.00030553,7]
[423362801,1780067446000,-361.3334021,0.00030553,5]
[423362797,1780067446000,-463.70757908,0.00030553,7]
[423362809,1780067446000,-674.0,0.00030681,30]
[423362808,1780067446000,-796.7,0.00030681,7]
[423362799,1780067446000,-475.86844961,0.00030553,7]
[423362796,1780067446000,-538.37520152,0.00030553,7]
[423362795,1780067446000,-451.49394837,0.00030553,7]
[423362792,1780067446000,-570.99272983,0.00030553,7]
[423362791,1780067446000,-606.76483683,0.00030553,7]
[423362787,1780067446000,-231.39465645,0.00030553,2]
[423362794,1780067446000,-458.24178159,0.00030553,7]
[423362798,1780067446000,-243.4795262,0.00030553,7]
[423362883,1780067447000,-1172.22,0.00030965,30]
[423362884,1780067447000,-1172.22,0.00030969,30]
[423362881,1780067447000,-1172.22,0.00030961,30]
[423362885,1780067447000,-1172.22,0.00030973,30]
[423362882,1780067447000,-503.66848019,0.00030964,7]
[423362872,1780067447000,-500.0,0.00030959,7]
[423362874,1780067447000,-500.0,0.00030959,7]
[423362870,1780067447000,-500.0,0.00030959,7]
[423362871,1780067447000,-500.0,0.00030959,7]
[423362861,1780067447000,-500.0,0.00030959,7]
[423362865,1780067447000,-500.0,0.00030959,7]
[423362880,1780067447000,-565.52515364,0.00030959,7]
[423362873,1780067447000,-500.0,0.00030959,7]
[423362896,1780067447000,-1172.22,0.00031014,30]
[423362878,1780067447000,-500.0,0.00030959,7]
[423362875,1780067447000,-500.0,0.00030959,7]
[423362879,1780067447000,-500.0,0.00030959,7]
[423362876,1780067447000,-500.0,0.00030959,7]
[423362886,1780067447000,-1172.22,0.00030978,30]
[423362888,1780067447000,-1172.22,0.00030986,30]
[423362889,1780067447000,-1172.22,0.0003099,30]
[423362887,1780067447000,-1172.22,0.00030982,30]
[423362891,1780067447000,-1172.22,0.00030998,30]
[423362897,1780067447000,-1172.22,0.00031018,30]
[423362898,1780067447000,-1172.22,0.00031022,30]
[423362894,1780067447000,-1172.22,0.00031006,30]
[423362895,1780067447000,-1172.22,0.0003101,30]
[423362864,1780067447000,-500.0,0.00030959,7]
[423362877,1780067447000,-500.0,0.00030959,7]
[423362868,1780067447000,-500.0,0.00030959,7]
[423362854,1780067447000,-150.0,0.00030959,7]
[423362866,1780067447000,-500.0,0.00030959,7]
[423362890,1780067447000,-1172.22,0.00030994,30]
[423362836,1780067447000,-1172.22,0.00030933,30]
[423362846,1780067447000,-201.93190072,0.00030959,7]
[423362847,1780067447000,-500.0,0.00030959,7]
[423362838,1780067447000,-1172.22,0.00030941,30]
[423362843,1780067447000,-500.0,0.00030958,2]
[423362842,1780067447000,-1172.22,0.00030957,30]
[423362844,1780067447000,-150.0,0.00030959,7]
[423362837,1780067447000,-1172.22,0.00030937,30]
[423362839,1780067447000,-1172.22,0.00030945,30]
[423362845,1780067447000,-150.0,0.00030959,7]
[423362841,1780067447000,-1172.22,0.00030953,30]
[423362840,1780067447000,-1172.22,0.00030949,30]
[423362867,1780067447000,-500.0,0.00030959,7]
[423362850,1780067447000,-500.0,0.00030959,7]
[423362855,1780067447000,-500.0,0.00030959,7]
[423362859,1780067447000,-500.0,0.00030959,7]
[423362851,1780067447000,-500.0,0.00030959,7]
[423362849,1780067447000,-164.95130155,0.00030959,7]
[423362848,1780067447000,-500.0,0.00030959,7]
[423362858,1780067447000,-181.27230281,0.00030959,7]
[423362856,1780067447000,-150.0,0.00030959,7]
[423362853,1780067447000,-500.0,0.00030959,7]
[423362857,1780067447000,-350.61953154,0.00030959,7]
[423362860,1780067447000,-500.0,0.00030959,7]
[423362862,1780067447000,-269.59984139,0.00030959,7]
[423362863,1780067447000,-500.0,0.00030959,7]
[423362869,1780067447000,-500.0,0.00030959,7]
[423362852,1780067447000,-500.0,0.00030959,7]
[423362893,1780067447000,-1172.22,0.00031002,30]
[423362900,1780067447000,-1172.22,0.00031031,30]
[423362957,1780067447000,-308.75521843,0.00031139,7]
[423362935,1780067447000,-164.02260231,0.00031139,7]
[423362934,1780067447000,-495.27141353,0.00031139,7]
[423362927,1780067447000,-168.87012776,0.00031139,7]
[423362931,1780067447000,-430.04676054,0.00031139,7]
[423362933,1780067447000,-655.72436786,0.00031139,7]
[423362942,1780067447000,-160.35581611,0.00031139,7]
[423362945,1780067447000,-160.49736034,0.00031139,7]
[423362941,1780067447000,-319.01564937,0.00031139,7]
[423362944,1780067447000,-160.42530055,0.00031139,7]
[423362943,1780067447000,-160.69199126,0.00031139,7]
[423362947,1780067447000,-329.67752506,0.00031139,7]
[423362950,1780067447000,-346.46281349,0.00031139,7]
[423362951,1780067447000,-222.12062325,0.00031139,7]
[423362929,1780067447000,-160.49732895,0.00031139,7]
[423362946,1780067447000,-160.42851659,0.00031139,7]
[423362949,1780067447000,-411.50549021,0.00031139,7]
[423362954,1780067447000,-301.40472437,0.00031139,7]
[423362964,1780067447000,-170.79684311,0.00031139,7]
[423362953,1780067447000,-791.32529599,0.00031139,7]
[423362960,1780067447000,-449.8075737,0.00031139,7]
[423362962,1780067447000,-389.94863677,0.00031139,7]
[423362956,1780067447000,-501.52436015,0.00031139,7]
[423362958,1780067447000,-165.55157232,0.00031139,7]
[423362961,1780067447000,-1294.59580574,0.00031139,7]
[423362955,1780067447000,-167.92382881,0.00031139,7]
[423362959,1780067447000,-160.42851735,0.00031139,7]
[423362892,1780067447000,-5040.29363723,0.00031,4]
[423362963,1780067447000,-164.41527313,0.00031139,7]
[423362948,1780067447000,-167.50753875,0.00031139,7]
[423362925,1780067447000,-168.79279335,0.00031139,2]
[423362952,1780067447000,-160.42531149,0.00031139,7]
[423362938,1780067447000,-160.42531587,0.00031139,7]
[423362905,1780067447000,-1172.22,0.00031051,30]
[423362936,1780067447000,-160.49733697,0.00031139,7]
[423362899,1780067447000,-1172.22,0.00031027,30]
[423362902,1780067447000,-1172.22,0.00031039,30]
[423362909,1780067447000,-1172.22,0.00031067,30]
[423362903,1780067447000,-1172.22,0.00031043,30]
[423362906,1780067447000,-1172.22,0.00031055,30]
[423362904,1780067447000,-1172.22,0.00031047,30]
[423362908,1780067447000,-1172.22,0.00031063,30]
[423362907,1780067447000,-1172.22,0.00031059,30]
[423362910,1780067447000,-1172.22,0.00031071,30]
[423362911,1780067447000,-1172.22,0.00031076,30]
[423362912,1780067447000,-1172.22,0.0003108,30]
[423362916,1780067447000,-1172.22,0.00031096,30]
[423362917,1780067447000,-237.491094,0.00031122,7]
[423362901,1780067447000,-1172.22,0.00031035,30]
[423362915,1780067447000,-1172.22,0.00031092,30]
[423362919,1780067447000,-179.932507,0.00031122,7]
[423362940,1780067447000,-348.934414,0.00031139,7]
[423362939,1780067447000,-170.45189406,0.00031139,7]
[423362937,1780067447000,-160.45909009,0.00031139,7]
[423362926,1780067447000,-170.14803788,0.00031139,7]
[423362924,1780067447000,-168.26811507,0.00031139,7]
[423362923,1780067447000,-168.84292047,0.00031139,7]
[423362920,1780067447000,-179.932507,0.00031122,7]
[423362918,1780067447000,-179.932507,0.00031122,7]
[423362914,1780067447000,-1172.22,0.00031088,30]
[423362913,1780067447000,-1172.22,0.00031084,30]
[423362922,1780067447000,-301.5555004,0.00031139,7]
[423362921,1780067447000,-179.932507,0.00031122,7]
[423363008,1780067448000,-173.0522868,0.00031144,7]
[423363006,1780067448000,-554.63080055,0.00031144,7]
[423363007,1780067448000,-166.39104305,0.00031144,7]
[423363015,1780067448000,-160.49731709,0.00031144,7]
[423363004,1780067448000,-168.95311079,0.00031144,7]
[423362999,1780067448000,-414.00856295,0.00031144,7]
[423363003,1780067448000,-585.29386708,0.00031144,7]
[423363002,1780067448000,-677.64274398,0.00031144,7]
[423363001,1780067448000,-529.41031767,0.00031144,7]
[423363016,1780067448000,-340.66294342,0.00031144,7]
[423362997,1780067448000,-700.19144759,0.00031139,7]
[423363005,1780067448000,-600.64699541,0.00031144,7]
[423363012,1780067448000,-161.87142922,0.00031144,7]
[423363018,1780067448000,-155.5235617,0.00031144,7]
[423363011,1780067448000,-707.32256884,0.00031144,7]
[423363010,1780067448000,-657.08869781,0.00031144,7]
[423363013,1780067448000,-798.8027429,0.00031144,7]
[423363014,1780067448000,-751.00760413,0.00031144,7]
[423363017,1780067448000,-342.74942695,0.00031144,7]
[423363028,1780067448000,-457.66138496,0.00031144,7]
[423363029,1780067448000,-522.34402998,0.00031144,7]
[423363020,1780067448000,-457.99628692,0.00031144,7]
[423363022,1780067448000,-160.4253173,0.00031144,7]
[423363021,1780067448000,-160.4253198,0.00031144,7]
[423363024,1780067448000,-613.76524063,0.00031144,7]
[423363023,1780067448000,-327.18449977,0.00031144,7]
[423362996,1780067448000,-406.19395241,0.00031139,7]
[423363009,1780067448000,-163.29326204,0.00031144,7]
[423363000,1780067448000,-491.45959357,0.00031144,7]
[423363019,1780067448000,-635.26213049,0.00031144,7]
[423362995,1780067448000,-160.42531781,0.00031139,7]
[423362966,1780067448000,-161.5358857,0.00031139,7]
[423362969,1780067448000,-587.82795927,0.00031139,7]
[423362974,1780067448000,-304.82514643,0.00031139,7]
[423362976,1780067448000,-487.18045858,0.00031139,7]
[423362977,1780067448000,-628.33793766,0.00031139,7]
[423362968,1780067448000,-157.42799772,0.00031139,7]
[423362970,1780067448000,-304.58981375,0.00031139,7]
[423362973,1780067448000,-315.36925289,0.00031139,7]
[423362979,1780067448000,-551.37323193,0.00031139,7]
[423362971,1780067448000,-310.45099771,0.00031139,7]
[423362978,1780067448000,-160.70734615,0.00031139,7]
[423362975,1780067448000,-324.43114156,0.00031139,7]
[423362967,1780067448000,-441.42006145,0.00031139,7]
[423362998,1780067448000,-674.01179723,0.00031144,7]
[423362981,1780067448000,-449.99939243,0.00031139,7]
[423362983,1780067448000,-160.42531756,0.00031139,7]
[423362982,1780067448000,-604.53302144,0.00031139,7]
[423362988,1780067448000,-384.50021525,0.00031139,7]
[423362989,1780067448000,-408.96463085,0.00031139,7]
[423362984,1780067448000,-160.42531152,0.00031139,7]
[423362980,1780067448000,-681.81437887,0.00031139,7]
[423362985,1780067448000,-786.38888166,0.00031139,7]
[423362986,1780067448000,-448.01293799,0.00031139,7]
[423362987,1780067448000,-164.96870002,0.00031139,2]
[423362990,1780067448000,-518.26482842,0.00031139,2]
[423362992,1780067448000,-340.62168414,0.00031139,7]
[423362994,1780067448000,-150.08748288,0.00031139,7]
[423362993,1780067448000,-318.84988709,0.00031139,7]
[423362991,1780067448000,-212.76995561,0.00031139,7]
[423363027,1780067448000,-1487.61035645,0.00031144,7]
[423363030,1780067448000,-306.56643812,0.00031144,7]
[423363026,1780067448000,-325.99365082,0.00031144,7]
[423363065,1780067448000,-996.0,0.00031184,8]
[423363062,1780067448000,-688.72185044,0.00031144,7]
[423363061,1780067448000,-1369.44397967,0.00031144,7]
[423363063,1780067448000,-823.57551348,0.00031144,7]
[423363060,1780067448000,-542.00010315,0.00031144,5]
[423363066,1780067448000,-50339.39,0.000312,14]
[423363070,1780067448000,-6066.0,0.00031217,2]
[423363080,1780067448000,-500.0,0.00031349,120]
[423363069,1780067448000,-3638.0,0.00031217,2]
[423363077,1780067448000,-546.02,0.00031349,2]
[423363071,1780067448000,-1590.0,0.00031277,3]
[423363074,1780067448000,-1590.0,0.00031326,3]
[423363076,1780067448000,-546.02,0.00031349,2]
[423363075,1780067448000,-2318.0,0.00031326,3]
[423363073,1780067448000,-152.0,0.00031288,28]
[423363072,1780067448000,-2318.0,0.00031277,3]
[423363079,1780067448000,-500.0,0.00031349,120]
[423363078,1780067448000,-500.0,0.00031349,120]
[423363082,1780067448000,-609.02,0.00031349,120]
[423363089,1780067448000,-181.768492,0.0003135,7]
[423363088,1780067448000,-151.0,0.0003135,7]
[423363081,1780067448000,-609.02,0.00031349,120]
[423363083,1780067448000,-609.02,0.00031349,120]
[423363085,1780067448000,-500.0,0.00031349,2]
[423363086,1780067448000,-560577.50430198,0.0003135,2]
[423363084,1780067448000,-500.0,0.00031349,2]
[423363087,1780067448000,-151.0,0.0003135,7]
[423363064,1780067448000,-1000.0,0.00031159,2]
[423363058,1780067448000,-770.11690927,0.00031144,7]
[423363025,1780067448000,-160.42850854,0.00031144,7]
[423363059,1780067448000,-796.42830105,0.00031144,7]
[423363031,1780067448000,-661.15135715,0.00031144,7]
[423363041,1780067448000,-764.47911495,0.00031144,7]
[423363032,1780067448000,-835.34770017,0.00031144,7]
[423363042,1780067448000,-561.87523418,0.00031144,2]
[423363033,1780067448000,-402.80754317,0.00031144,7]
[423363034,1780067448000,-726.8315098,0.00031144,7]
[423363039,1780067448000,-827.17413021,0.00031144,5]
[423363056,1780067448000,-634.49126615,0.00031144,7]
[423363040,1780067448000,-762.55292128,0.00031144,7]
[423363038,1780067448000,-506.07001486,0.00031144,7]
[423363035,1780067448000,-439.84777493,0.00031144,7]
[423363037,1780067448000,-1153.67416936,0.00031144,7]
[423363045,1780067448000,-660.09473194,0.00031144,7]
[423363043,1780067448000,-587.77991003,0.00031144,2]
[423363036,1780067448000,-160.42852072,0.00031144,7]
[423363047,1780067448000,-681.6472164,0.00031144,7]
[423363044,1780067448000,-462.7893129,0.00031144,2]
[423363068,1780067448000,-1021.0,0.00031217,2]
[423363067,1780067448000,-1113.0,0.00031217,2]
[423363057,1780067448000,-486.95905239,0.00031144,7]
[423363052,1780067448000,-601.99193116,0.00031144,7]
[423363054,1780067448000,-695.56136862,0.00031144,7]
[423363055,1780067448000,-453.38015755,0.00031144,7]
[423363051,1780067448000,-610.98904212,0.00031144,7]
[423363049,1780067448000,-761.32363978,0.00031144,7]
[423363046,1780067448000,-788.5794233,0.00031144,7]
[423363050,1780067448000,-723.40083595,0.00031144,7]
[423363048,1780067448000,-809.01978244,0.00031144,7]
[423363053,1780067448000,-717.83360202,0.00031144,7]
[423363128,1780067449000,-1114.20304684,0.00031468,5]
[423363135,1780067449000,-1002.32277586,0.00031468,5]
[423363133,1780067449000,-1039.79506245,0.00031468,5]
[423363132,1780067449000,-1076.21688557,0.00031468,5]
[423363139,1780067449000,-1013.06256159,0.00031468,5]
[423363125,1780067449000,-163.0,0.00031458,3]
[423363126,1780067449000,-2318.0,0.00031458,3]
[423363124,1780067449000,-344.80921195,0.00031445,7]
[423363127,1780067449000,-1097.1415396,0.00031468,5]
[423363123,1780067449000,-324.03231756,0.00031445,7]
[423363122,1780067449000,-171.734091,0.00031442,7]
[423363129,1780067449000,-1143.73266867,0.00031468,5]
[423363136,1780067449000,-1037.90106698,0.00031468,5]
[423363163,1780067449000,-1031.89215275,0.00031468,5]
[423363137,1780067449000,-1033.67259758,0.00031468,5]
[423363138,1780067449000,-1104.21015449,0.00031468,5]
[423363131,1780067449000,-1034.38509824,0.00031468,5]
[423363134,1780067449000,-1130.79546059,0.00031468,5]
[423363140,1780067449000,-1091.89813549,0.00031468,5]
[423363142,1780067449000,-1042.2982952,0.00031468,5]
[423363152,1780067449000,-1042.32247915,0.00031468,5]
[423363144,1780067449000,-1012.14871588,0.00031468,5]
[423363157,1780067449000,-1045.40826868,0.00031468,5]
[423363146,1780067449000,-1123.06401962,0.00031468,5]
[423363148,1780067449000,-1142.15980301,0.00031468,5]
[423363160,1780067449000,-1094.38960988,0.00031468,5]
[423363121,1780067449000,-151.0,0.00031442,7]
[423363130,1780067449000,-1060.09969309,0.00031468,5]
[423363119,1780067449000,-179.932507,0.00031434,7]
[423363116,1780067449000,-807.52288603,0.00031422,11]
[423363118,1780067449000,-179.932507,0.00031434,7]
[423363150,1780067449000,-1083.21944086,0.00031468,5]
[423363091,1780067449000,-150.0,0.0003135,2]
[423363092,1780067449000,-150.0,0.00031353,2]
[423363093,1780067449000,-150.0,0.00031356,2]
[423363096,1780067449000,-619.54810886,0.00031357,7]
[423363095,1780067449000,-380.71170484,0.00031357,7]
[423363094,1780067449000,-343.01765591,0.00031357,7]
[423363097,1780067449000,-150.870274,0.0003136,2]
[423363103,1780067449000,-442.53436347,0.00031368,7]
[423363099,1780067449000,-663.2792205,0.00031367,7]
[423363100,1780067449000,-330.28263459,0.00031367,7]
[423363101,1780067449000,-261.71285094,0.00031368,7]
[423363098,1780067449000,-178.09446119,0.00031367,2]
[423363102,1780067449000,-277.90771081,0.00031368,2]
[423363104,1780067449000,-1590.0,0.00031369,3]
[423363108,1780067449000,-179.8866763,0.00031384,30]